{"text_format":"3","workbook":"xlsx","n_sheets":1,"sheets":["Controlador de Faturas"],"not_rendered":{"defined_names":1},"read":"whole","date_system":"1900"}

{"sheet":"Controlador de Faturas","index":0,"n_rows":18,"n_cols":10,"rows_kept":18,"merged":[[0,1,0,2]]}
[null,"Controlador de Faturas"]
[]
[null,"Nº da Fatura","Data","Vencimento em","Nome do Cliente","Valor ","Multa por Atraso ","Total Pago","Data de Pagamento","Pendente"]
[null,1001,{"$f":"DATE(YEAR(TODAY()),1,15)","v":"2019-01-15"},{"$f":"DATE(YEAR(TODAY()),2,15)","v":"2019-02-15"},"Smith",{"v":20199,"d":"R$20,199.00"},{"$f":"IF('Controlador de Faturas'!$D4>='Controlador de Faturas'!$I4,,5)","v":0},{"v":20199,"d":"R$20,199.00"},{"$f":"DATE(YEAR(TODAY()),2,1)","v":"2019-02-01"},{"$f":"'Controlador de Faturas'!$F4-'Controlador de Faturas'!$H4+'Controlador de Faturas'!$G4","v":0}]
[null,1002,{"$f":"DATE(YEAR(TODAY()),2,11)","v":"2019-02-11"},{"$f":"DATE(YEAR(TODAY()),4,1)","v":"2019-04-01"},"Smith",{"v":15700,"d":"R$15,700.00"},{"$f":"IF('Controlador de Faturas'!$D5>='Controlador de Faturas'!$I5,,5)","v":{"v":5,"d":"R$5.00"}},{"v":7500,"d":"R$7,500.00"},{"$f":"DATE(YEAR(TODAY()),4,10)","v":"2019-04-10"},{"$f":"'Controlador de Faturas'!$F5-'Controlador de Faturas'!$H5+'Controlador de Faturas'!$G5","v":{"v":8205,"d":"R$8,205.00"}}]
[null,1003,{"$f":"DATE(YEAR(TODAY()),2,17)","v":"2019-02-17"},{"$f":"DATE(YEAR(TODAY()),4,15)","v":"2019-04-15"},"Contoso",{"v":13799,"d":"R$13,799.00"},{"$f":"IF('Controlador de Faturas'!$D6>='Controlador de Faturas'!$I6,,5)","v":0},{"v":5500,"d":"R$5,500.00"},{"$f":"DATE(YEAR(TODAY()),3,17)","v":"2019-03-17"},{"$f":"'Controlador de Faturas'!$F6-'Controlador de Faturas'!$H6+'Controlador de Faturas'!$G6","v":{"v":8299,"d":"R$8,299.00"}}]
[null,1004,{"$f":"DATE(YEAR(TODAY()),3,8)","v":"2019-03-08"},{"$f":"DATE(YEAR(TODAY()),4,1)","v":"2019-04-01"},"Jonathon Haas",{"v":120,"d":"R$120.00"},{"$f":"IF('Controlador de Faturas'!$D7>='Controlador de Faturas'!$I7,,5)","v":{"v":5,"d":"R$5.00"}},{"v":75,"d":"R$75.00"},{"$f":"DATE(YEAR(TODAY()),4,16)","v":"2019-04-16"},{"$f":"'Controlador de Faturas'!$F7-'Controlador de Faturas'!$H7+'Controlador de Faturas'!$G7","v":{"v":50,"d":"R$50.00"}}]
[null,1005,{"$f":"DATE(YEAR(TODAY()),3,17)","v":"2019-03-17"},{"$f":"DATE(YEAR(TODAY()),4,30)","v":"2019-04-30"},"Contoso",{"v":150,"d":"R$150.00"},{"$f":"IF('Controlador de Faturas'!$D8>='Controlador de Faturas'!$I8,,5)","v":0},{"v":75,"d":"R$75.00"},{"$f":"DATE(YEAR(TODAY()),4,11)","v":"2019-04-11"},{"$f":"'Controlador de Faturas'!$F8-'Controlador de Faturas'!$H8+'Controlador de Faturas'!$G8","v":{"v":75,"d":"R$75.00"}}]
[null,1006,{"$f":"DATE(YEAR(TODAY()),4,1)","v":"2019-04-01"},{"$f":"DATE(YEAR(TODAY()),6,1)","v":"2019-06-01"},"Stephanie Bourne",{"v":1475,"d":"R$1,475.00"},{"$f":"IF('Controlador de Faturas'!$D9>='Controlador de Faturas'!$I9,,5)","v":0},{"v":1200,"d":"R$1,200.00"},{"$f":"DATE(YEAR(TODAY()),4,28)","v":"2019-04-28"},{"$f":"'Controlador de Faturas'!$F9-'Controlador de Faturas'!$H9+'Controlador de Faturas'!$G9","v":{"v":275,"d":"R$275.00"}}]
[{"$nulls":6},{"$f":"IF('Controlador de Faturas'!$D10>='Controlador de Faturas'!$I10,,5)","v":0},null,null,{"$f":"'Controlador de Faturas'!$F10-'Controlador de Faturas'!$H10+'Controlador de Faturas'!$G10","v":0}]
[{"$nulls":6},{"$f":"IF('Controlador de Faturas'!$D11>='Controlador de Faturas'!$I11,,5)","v":0},null,null,{"$f":"'Controlador de Faturas'!$F11-'Controlador de Faturas'!$H11+'Controlador de Faturas'!$G11","v":0}]
[{"$nulls":6},{"$f":"IF('Controlador de Faturas'!$D12>='Controlador de Faturas'!$I12,,5)","v":0},null,null,{"$f":"'Controlador de Faturas'!$F12-'Controlador de Faturas'!$H12+'Controlador de Faturas'!$G12","v":0}]
[{"$nulls":6},{"$f":"IF('Controlador de Faturas'!$D13>='Controlador de Faturas'!$I13,,5)","v":0},null,null,{"$f":"'Controlador de Faturas'!$F13-'Controlador de Faturas'!$H13+'Controlador de Faturas'!$G13","v":0}]
[{"$nulls":6},{"$f":"IF('Controlador de Faturas'!$D14>='Controlador de Faturas'!$I14,,5)","v":0},null,null,{"$f":"'Controlador de Faturas'!$F14-'Controlador de Faturas'!$H14+'Controlador de Faturas'!$G14","v":0}]
[{"$nulls":6},{"$f":"IF('Controlador de Faturas'!$D15>='Controlador de Faturas'!$I15,,5)","v":0},null,null,{"$f":"'Controlador de Faturas'!$F15-'Controlador de Faturas'!$H15+'Controlador de Faturas'!$G15","v":0}]
[{"$nulls":6},{"$f":"IF('Controlador de Faturas'!$D16>='Controlador de Faturas'!$I16,,5)","v":0},null,null,{"$f":"'Controlador de Faturas'!$F16-'Controlador de Faturas'!$H16+'Controlador de Faturas'!$G16","v":0}]
[{"$nulls":6},{"$f":"IF('Controlador de Faturas'!$D17>='Controlador de Faturas'!$I17,,5)","v":0},null,null,{"$f":"'Controlador de Faturas'!$F17-'Controlador de Faturas'!$H17+'Controlador de Faturas'!$G17","v":0}]
[null,"Total",{"$nulls":3},{"$f":"SUBTOTAL(109,invoices[[Valor ]])","v":{"v":51443,"d":"R$51,443.00"}},null,{"$f":"SUBTOTAL(109,invoices[Total Pago])","v":{"v":34549,"d":"R$34,549.00"}},null,{"$f":"SUBTOTAL(109,invoices[Pendente])","v":{"v":16904,"d":"R$16,904.00"}}]